Cogmind - Beta 16.1 @@@ ROGUE MODE // 2026.03.08 @ 16:34:03 Player: Ben Result: Destroyed by H-55 Commando with Gauss Rifle Performance ------------- Evolutions (2) 1000 Regions Visited (3) 600 Robots Destroyed (28) 140 Value Destroyed (645) 645 Prototype IDs (1) 20 Alien Tech Used (0) 0 Bonus (0) 0 TOTAL SCORE: 2405 Bonus ------- None Cogmind --------- Core Integrity 0/550 Matter 110/300 Energy 19/100 System Corruption 0% Temperature Cool (0) Movement Core (100) Ox1 Location -8/Materials Parts ------- > --- POWER (2) -------- (None) > --- PROPULSION (3) --- (None) > --- UTILITY (4) ------ Medium Storage Unit Weight Redist. System > --- WEAPON (2) ------- (None) > --- INVENTORY (10) --- Ion Engine Wheel Light Cannon Flak Cannon Peak State ------------ > --- POWER ------------ Ion Engine > --- PROPULSION ------- Wheel Wheel Wheel > --- UTILITY ---------- Trap Scanner Signal Interpreter Hacking Suite > --- WEAPON ----------- Heavy Particle Cannon Axe > --- INVENTORY -------- Light Treads Particle Charger Hardlight Generator Beam Rifle Mini Grenade Launcher [Rating: 18] Favorites ----------- Power Light Ion Engine Engine Light Ion Engine Power Core Nuclear Core Propulsion Aluminum Leg Treads Light Treads Leg Aluminum Leg Wheel Wheel Utility Signal Interpreter Device Weight Redist. System Storage Medium Storage Unit Processor Signal Interpreter Hackware Hacking Suite Weapon EM Pulse Gun Energy Gun EM Pulse Gun Energy Cannon Heavy Particle Cannon Ballistic Gun Heavy Assault Rifle Ballistic Cannon Light Cannon Launcher Mini Grenade Launcher Slashing Weapon Axe Build | -11 -10 -9 -8 ------- Run | Yrd Mat Mat Mat Slots Evolved 4 | . . 2 2 Power 1 | . . . 1 Propulsion 1 | . . 1 . Utility 2 | . . 1 1 Weapon . | . . . . Parts Attached 35 | 5 9 15 6 Power 5 | 1 1 1 2 Engine 4 | 1 1 1 1 Core 1 | . . . 1 Reactor . | . . . . Propulsion 7 | 2 2 3 . Treads 2 | . 1 1 . Leg 2 | 2 . . . Wheel 3 | . 1 2 . Hover . | . . . . Flight . | . . . . Utility 11 | . 3 6 2 Device 4 | . . 3 1 Storage 1 | . . . 1 Processor 5 | . 2 3 . Hackware 1 | . 1 . . Protection . | . . . . Artifact . | . . . . Weapon 12 | 2 3 5 2 Energy Gun 5 | 2 1 2 . Energy Cannon 1 | . . 1 . Ballistic Gun 1 | . . . 1 Ballistic Cannon 2 | . 1 . 1 Launcher 2 | . 1 1 . Special Weapon . | . . . . Impact Weapon . | . . . . Slashing Weapon 1 | . . 1 . Piercing Weapon . | . . . . Special Melee Weapon . | . . . . Unidentified Prototypes 1 | . . 1 . Parts Lost 16 | . 2 6 8 Power 3 | . 1 . 2 Propulsion 3 | . . 1 2 Utility 5 | . . 4 1 Weapon 5 | . 1 1 3 Highest Loss Streak 7 | . 2 3 7 To Critical Strikes . | . . . . Average Backups 3 | 2 3 4 4 Power . | . . . . Propulsion 1 | 1 1 . 1 Utility . | . . . . Weapon 1 | . 1 2 2 Tool/Special . | . . . . Unused Backups 4 | . . 3 1 Power . | . . . . Propulsion . | . . . . Utility . | . . . . Weapon 4 | . . 3 1 Tool/Special . | . . . . Average Slot Usage (%) 80 | . 82 88 64 Engine 11 | . 12 11 11 Treads 7 | . 7 5 10 Leg 3 | . 12 . . Wheel 11 | . 4 20 . Device 4 | . . 4 7 Storage 1 | . . . 7 Processor 10 | . 5 14 8 Hackware 7 | . 10 10 . Energy Gun 4 | . 12 3 . Ballistic Cannon 6 | . 10 4 6 Launcher 4 | . 3 6 . Slashing Weapon 5 | . . 6 8 Peak Build Rating 18 | 5 10 18 17 Average Rating 9 | 4 7 13 13 On Entrance 5 | . 5 9 8 Avg Prop Armor Cover (%) 11 | . 9 14 . Naked Turns . | . . . . Heaviest Build 31 | 7 9 19 31 Greatest Support 46 | 20 20 40 46 Greatest Overweight (x) 3 | . 2 . 3 Average Overweight (x) . | . . . . Largest Inventory Capacity 10 | 5 5 5 10 Average Capacity 5 | 5 5 5 9 Most Carried 5 | 5 5 5 5 Average Carried 3 | 2 3 4 4 Final Capacity 10 | 5 5 5 10 Final Carried 5 | 3 3 5 4 Class Distribution -------------------- 93% | Mutant 6% | Scavenger-Mutant Dominant Class ---------------- Mutant | -10/Materials Mutant | -9/Materials Mutant | -8/Materials Resources | -11 -10 -9 -8 ----------- Run | Yrd Mat Mat Mat Matter Collected 691 | 250 16 388 37 Remotely . | . . . . Salvage Created 525 | 50 116 273 86 Parts 46 | 2 19 20 5 Haulers Intercepted 1 | . 1 . . Recyclers Shooed . | . . . . Parts Field Recycled . | . . . . Retrieved Matter . | . . . . Parts Self-Destructed . | . . . . Prevented . | . . . . Parts Restored . | . . . . Kills | -11 -10 -9 -8 ------- Run | Yrd Mat Mat Mat Combat Hostiles Destroyed 16 | 1 3 6 6 Guns 3 | 1 . 1 1 Cannons 7 | . . 2 5 AOE 6 | . 3 3 . Classes Destroyed 10 | 1 5 3 1 Worker 1 | . . 1 . Builder 2 | . 2 . . Hauler 1 | . 1 . . Operator 3 | . 1 2 . Watcher 5 | . 2 3 . Swarmer 7 | . 3 . 4 Grunt 3 | 1 . 2 . Brawler 2 | . . 2 . Sentry 3 | . . 2 1 Hunter 1 | . . . 1 Best Kill Streak 6 | 1 5 6 4 Combat Bots Only 4 | 1 3 2 4 Max Kills in Single Turn 3 | 1 3 2 1 Gunslinging . | . . . . Exploded 2 | . 2 1 . Melee . | . . . . Uniques/NPCs Destroyed . | . . . . Combat | -11 -10 -9 -8 -------- Run | Yrd Mat Mat Mat Hostile Shots Fired 183 | 3 5 21 154 Missed 57 | 1 1 11 44 Hits 126 | 2 4 10 110 Melee 1 | . . 1 . Projectile 125 | 2 4 9 110 Critical Strikes 3 | . . . 3 Damage Taken 2262 | 23 228 561 1450 Core 780 | . 81 148 551 Absorbed by Shields . | . . . . Core Remaining (%) 76 | 100 67 63 . Volleys Fired 70 | 3 8 24 35 Largest 2 | 2 2 2 1 Hottest 80 | 80 80 70 56 Shots Fired 89 | 6 15 33 35 Gun 32 | 6 2 12 12 Cannon 41 | . 7 11 23 Launcher 16 | . 6 10 . Special . | . . . . Kinetic 48 | . 7 11 30 Thermal 11 | . . 6 5 Explosive 16 | . 6 10 . Electromagnetic 14 | 6 2 6 . Robot Hit Streak 8 | 3 5 8 8 Robot Miss Streak 9 | 1 2 2 9 Penetration Max . | . . . . Secondary Targets . | . . . . Shots Hit Robots 63 | 4 6 22 31 Core Hits 63 | 2 14 18 29 Critical Kills . | . . . . Critical Parts Destroyed . | . . . . Critical Strikes 1 | . . . 1 Burn 1 | . . . 1 Melee Attacks 21 | . . 14 7 Impact . | . . . . Slashing 21 | . . 14 7 Piercing . | . . . . Sneak Attacks . | . . . . Combat Hostiles . | . . . . Follow-up Attacks . | . . . . Damage Inflicted 1760 | 53 433 765 509 Guns 327 | 53 15 100 159 Cannons 527 | . 37 140 350 Explosions 906 | . 381 525 . Melee . | . . . . Ramming . | . . . . Kinetic 614 | . 37 140 437 Thermal 138 | . . 66 72 Explosive 868 | . 343 525 . Electromagnetic 140 | 53 53 34 . Impact . | . . . . Slashing . | . . . . Piercing . | . . . . Highest Corruption 10 | . 1 10 . Average Corruption 4 | . 1 5 . Corruption Purged . | . . . . Corruption Blocked . | . . . . Effects 18 | . 1 17 . Message Errors 6 | . . 6 . Matter Fused 3 | . . 3 . Heat Flow Errors 3 | . . 3 . Energy Discharges 2 | . . 2 . Data Loss (minor) 4 | . 1 3 . Overload Shots . | . . . . Overflow Damage 21 | . 21 . . Projectiles . | . . . . Explosions 21 | . 21 . . Melee . | . . . . Knockbacks 12 | . . . 12 Impact . | . . . . Kinetic 12 | . . . 12 Secondary . | . . . . Self-Inflicted Damage 233 | . 199 34 . Shots 8 | . 6 2 . Rammed . | . . . . Targets Rammed . | . . . . Kicked . | . . . . Crushed . | . . . . Highest Temperature 206 | 66 18 206 36 Average Temperature 44 | 34 10 64 22 Received Heat Transfer 414 | 12 . 51 351 Siege Activations . | . . . . Martial Activations . | . . . . Shielding Activations . | . . . . Robots Disrupted . | . . . . Combat Hostiles . | . . . . Robots Corrupted . | . . . . Combat Hostiles . | . . . . Parts Fried . | . . . . Impact Corruptions . | . . . . Robots Melted . | . . . . Combat Hostiles . | . . . . Parts Melted . | . . . . Heat Transferred 407 | . . 148 259 Parts Sabotaged . | . . . . Parts Stolen . | . . . . Parts Stripped . | . . . . Power Chain Reactions 1 | . 1 . . Alert | -11 -10 -9 -8 ------- Run | Yrd Mat Mat Mat Maximum Alert Level . | . . . . Low Security (%) 100 | 100 100 100 100 Level 1 . | . . . . Level 2 . | . . . . Level 3 . | . . . . Level 4 . | . . . . Level 5 . | . . . . High Security . | . . . . Max Security . | . . . . Peak Influence 154 | 20 154 126 70 Initial 25 | . . 25 3 Average 28 | . 62 44 17 Influence Increases 745 | 20 197 336 192 Destroy 0b10 Robot/C 320 | 20 60 120 120 Destroy 0b10 Robot/NC 60 | . 30 30 . Destroy Leader 92 | . 16 46 30 Successful Hack 7 | . 2 . 5 Disable Machine 105 | . 60 45 . Destroy Structure 101 | . 29 65 7 Partial Spotted 15 | . . 15 . Lose Combat Pursuer 45 | . . 15 30 Influence Decreases 745 | 20 137 387 201 Entered New Map 41 | . . 35 6 Time Decay 563 | 20 117 302 124 Lost Part 141 | . 20 50 71 Squads Dispatched 1 | . . . 1 Investigation . | . . . . Extermination . | . . . . Reinforcement 1 | . . . 1 Assault . | . . . . Garrison . | . . . . Intercept . | . . . . Searches Triggered . | . . . . Construction Impeded . | . . . . Haulers Reinforced . | . . . . Active Scanning Responses . | . . . . Cargo Convoy Interrupts . | . . . . Stealth | -11 -10 -9 -8 --------- Run | Yrd Mat Mat Mat Distress Signals 2 | . 1 . 1 Communications Jammed . | . . . . Distress Signals . | . . . . Times Spotted 33 | 1 8 12 12 Peak Tracking Total 5 | 1 3 4 5 Tactical Retreats 2 | . . 1 1 Traps | -11 -10 -9 -8 ------- Run | Yrd Mat Mat Mat Traps Triggered . | . . . . Indirectly . | . . . . Trap Hack Attempts . | . . . . Triggered . | . . . . Disarmed . | . . . . Reprogrammed . | . . . . Reused . | . . . . Traps Extracted . | . . . . Installed . | . . . . Triggered . | . . . . Machines | -11 -10 -9 -8 ---------- Run | Yrd Mat Mat Mat Machines Disabled 7 | . 4 3 . Max in Single Turn 1 | . 1 1 . Machines Repaired . | . . . . Machines Dismantled . | . . . . Machines Sabotaged . | . . . . Overloaded Fab Kills . | . . . . Hacking | -11 -10 -9 -8 --------- Run | Yrd Mat Mat Mat Machines Accessed 7 | . 1 5 1 Terminals 4 | . 1 2 1 Fabricators . | . . . . Repair Stations 1 | . . 1 . Recycling Units 1 | . . 1 . Scanalyzers 1 | . . 1 . Garrison Access . | . . . . Total Hacks 20 | . 2 15 3 Successful 15 | . 1 12 2 Failed 5 | . 1 3 1 Catastrophic . | . . . . Database Lockouts . | . . . . Manual 2 | . . . 2 Terminals 12 | . 2 7 3 Fabricators . | . . . . Repair Stations 1 | . . 1 . Recycling Units 5 | . . 5 . Scanalyzers 2 | . . 2 . Garrison Access . | . . . . Terminal Hacks 8 | . 1 5 2 Record 4 | . 1 3 . Locate Traps 1 | . . 1 . Dispatch Records 1 | . . . 1 Maintenance Status 1 | . . 1 . Hauler Manifests 1 | . . . 1 Fabricator Hacks . | . . . . Repair Station Hacks 1 | . . 1 . Scan Component 1 | . . 1 . Recycling Unit Hacks 4 | . . 4 . Recycle Component 1 | . . 1 . Process 1 | . . 1 . Retrieve Matter 2 | . . 2 . Scanalyzer 2 | . . 2 . Insert Component 1 | . . 1 . Analyze 1 | . . 1 . Garrison Access Hacks . | . . . . Unauthorized Hacks . | . . . . Terminals . | . . . . Fabricators . | . . . . Repair Stations . | . . . . Recycling Units . | . . . . Scanalyzers . | . . . . Garrison Access . | . . . . Data Cores Recovered 1 | . 1 . . Used . | . . . . Hacking Detections 6 | . 1 4 1 Full Trace Events . | . . . . Feedback Events . | . . . . Feedback Blocked . | . . . . Robot Schematics Acquired . | . . . . Robots Built . | . . . . Authchips . | . . . . Time . | . . . . Total Robot Build Rating . | . . . . Part Schematics Acquired 1 | . . 1 . Parts Built . | . . . . Authchips . | . . . . Time . | . . . . Total Part Build Rating . | . . . . Part Studies Acquired . | . . . . Parts Repaired . | . . . . Time . | . . . . Parts Recycled 1 | . . 1 . Recycled Matter 98 | . . 98 . Retrieved Matter 98 | . . 98 . Retrieved Components . | . . . . Parts Scanalyzed 1 | . . 1 . Part Schematics Acquired 1 | . . 1 . Parts Damaged 1 | . . 1 . Bothacking | -11 -10 -9 -8 ------------ Run | Yrd Mat Mat Mat Used RIF Installer . | . . . . Robots Hacked . | . . . . Non-combat . | . . . . Combat . | . . . . Robot Hacks Applied . | . . . . Relay Couplers Released . | . . . . Fabnet Peak Effective % . | . . . . Robots Rewired . | . . . . Allies Hacked . | . . . . Hacks Repelled . | . . . . Allies | -11 -10 -9 -8 -------- Run | Yrd Mat Mat Mat Total Allies . | . . . . Largest Group . | . . . . Highest-Rated Group . | . . . . Highest-Rated Ally . | . . . . Total Orders . | . . . . Ally Attacks . | . . . . Total Damage . | . . . . Kills . | . . . . Allies Corrupted . | . . . . Allies Melted . | . . . . Intel | -11 -10 -9 -8 ------- Run | Yrd Mat Mat Mat Active Infowar (turns) 310 | . . 310 . Optics 103 | . . 103 . Traps 207 | . . 207 . Robot Analysis Total . | . . . . Derelict Logs Recovered . | . . . . Drone Launches . | . . . . Drone Recoveries . | . . . . Exploration | -11 -10 -9 -8 ------------- Run | Yrd Mat Mat Mat Turns Passed 2284 | 739 367 776 402 Spaces Moved 1309 | 306 249 618 136 Core 78 | 28 46 . 4 Treads 321 | . 88 101 132 Legs 393 | 278 115 . . Wheels 517 | . . 517 . Hover . | . . . . Flight . | . . . . Fastest Speed 50 | 50 50 80 100 Average Speed 115 | 113 127 93 203 Slowest Speed 240 | 120 160 160 240 Overloaded Moves . | . . . . Propulsion Burnouts . | . . . . Robots Hopped . | . . . . Potential Cave-ins . | . . . . Cave-ins Triggered 1 | . . 1 . Exploration Rate (%) 24 | 22 26 38 10 Regions Visited 3 Branch Regions . Pre-discovered Areas . | . . . . Known Exits Taken 2 | . 1 1 . Unknown Exits Taken 1 | 1 . . . Scrap Searched . | . . . . Spaces Dug 21 | . . 14 7 Terrain Destroyed 105 | . 27 71 7 Melee 21 | . . 14 7 Projectile . | . . . . AOE 84 | . 27 57 . Terrain Rammed . | . . . . Walls Destroyed . | . . . . Machines Disabled . | . . . . Actions | -11 -10 -9 -8 --------- Run | Yrd Mat Mat Mat Total 1956 | 691 288 764 213 Wait 441 | 370 . 51 20 Move 1306 | 305 248 617 136 Hop . | . . . . Pick Up 48 | 8 13 22 5 Fast Attach . | . . . . Attach 26 | 5 6 10 5 Detach 1 | . . 1 . Swap 18 | . 4 10 4 Drop 25 | . 9 15 1 Fire 70 | 3 8 24 35 Melee 21 | . . 14 7 Ram . | . . . . Kick . | . . . . Crush . | . . . . Escape Stasis . | . . . . Rewire . | . . . . Trap . | . . . . Miscellaneous . | . . . . Route ------- -11/Scrapyard -10/Materials -9/Materials -8/Materials History --------- Turn | Location | Event 2 | -11/Scrapyard | Met Revision 17 87 | -11/Scrapyard | Discovered new exit (range 8) 740 | -11/Scrapyard | Entered Materials 741 | -10/Materials | Build established: Mutant 944 | -10/Materials | Discovered new exit (range 15) 1106 | -10/Materials | Identified exit to Materials 1107 | -10/Materials | Entered another Materials area 1107 | -9/Materials | Evolved 2 slots: Propulsion x1, Utility x1 1791 | -9/Materials | Discovered new exit (range 3) 1852 | -9/Materials | Crushed by falling debris 1852 | -9/Materials | System corruption reached 10% 1881 | -9/Materials | Identified exit to Materials 1883 | -9/Materials | Lost 3 parts (2u1w) 1883 | -9/Materials | Entered another Materials area 1883 | -8/Materials | Evolved 2 slots: Power x1, Utility x1 2258 | -8/Materials | Core integrity fell below 50% 2277 | -8/Materials | Core integrity fell below 20% 2285 | -8/Materials | Destroyed by H-55 Commando with Gauss Rifle Last Messages --------------- G-47 Trooper overheating. R-06 Scavenger collects Welding Torch. G-47 Trooper heat damages Imp. Heat Sink. Penetrated by Slug. Beam Rifle destroyed. Penetrated by Slug. G-47 Trooper heat short circuits Imp. Heat Sink. Penetrated by Slug. G-47 Trooper overheating. Signal Interpreter destroyed. Slug penetrates Wall. Critical hit (Burn: +37). Penetrated by Slug. Hvy. Assault Rifle destroyed. Slug penetrates Wall. Penetrated by Slug. K-01 Serf collects debris. Penetrated by Slug. K-01 Serf collects debris. Penetrated by Slug. Map ----- +----------------------------------------------------+ | ???????????????????????????????????????? | | ???????????????????????????????????????? | | ???????????????????????????????????????? | | ???????????????????????????????????????? | | ???????????????????????????????????????? | | ???????????????????????????????????????? | | ???????????????????????????????????????? | | ???????????????????????????????????????? | | ???????????????????????????????????????? | | ???????????????????????????????????????? | | ???????????????????????????????????????? | | ???????????????????????????????????????? | | ???????????????????????????????????????? | | ???????????????????????????????????????? | | ???????????????????????????????????????? | | ???????????????????????????? ??????????? | | ??????????????????????????? ??????????? | | ?????????????????????????? ???????????? | | ???????????????????????##+##???????????? | | ????????#+######## ### ????????????? | | ????????# ?????????????? | | ????????# ?????????????? | | ????????# ?????????????? | | ?????#####+########+###????????????????? | | ?????# ##% k #????????????????? | | ?????# ## @ h [%#????????????????? | | ?????# ! ## g #????????????????? | | ????## !! ## "" #????????????????? | | ????## ## """ #????????????????? | | ????## ## """ #????????????????? | | ?????####+#############????????????????? | | ?????# #??????????????????? | | ?????# #??????????????????? | | ?????# #??????????????????? | | ########## #??????????????????? | | # # ##?????####????????? | | # """# "" T#??? ???? | | # ! """# "Y #### ???? | | # """# "" ???? | | # + *!% ##??????????? | | # """# #???????????? | | # """###+#### ########???????????? | | # """#??????# #??????????????????? | | # #??????# #??????????????????? | | ##########??????+ + ?????????????????? | | ??????????????? # # ????????????????? | | ?????????????? # # [???????????????? | | ?????????????? ?# #? ??????????????? | | ?????????????##?# #?####?????????????? | | ????????????????# #??????????????????? | +----------------------------------------------------+ Best States ------------- Heat Dissipation 31 Energy Generation 23 Energy Capacity 290 Matter Stores 300 Matter Capacity 300 Sight Range 18 Terrain Scan Density 85 Additional Mass Support 6 Evasion (%) 55 Recoil Reduction 2 Particle Charging 15 Salvage Targeting 1 Offensive Hacking 10 Item Schematics ----------------- Imp. Medium Laser | -9/Materials | Scanalyzed Robot Schematics ------------------ None Fabricated ------------ Nothing Repaired ---------- Nothing Studied --------- None Alien Tech Used ----------------- None Achievements -------------- Part-time Excavator Physics Hates This One Trick Risk Taker Storm Trooper System Compromised Unlikely Earthworm Challenges ------------ None Game ------ Seed HybridIntegratedSplitter Manual? 0 Play Time 00:48:43 Cumulative 2.1 hours Start 2026.03.08 @ 15:13:35 End 2026.03.08 @ 16:34:03 Sessions 1 Manual Loads 0 Difficulty Rogue Special Mode None Game No. 3 Rogue 3 Adventurer 0 Explorer 0 Win Type - Total 0 Types 0/0/0/0/0/0/0/0/0/0 Lore% 1 Gallery% 4 Achievement% 5 Wizard Run 0 Options --------- Layout 0 ASCII 0 Keyboard 0 Movement Mouse Keybinds 0 Fullscreen 1 Font 24/Smallcaps Map View 76x50 Zoom Use 0% Tactical HUD 0 Map Filters NONE Filters NONE Steam 1 RUN: 6c01c57d-a4ba-4d87-8a3f-dc8fc9ad904a